[Event "44th Chess Olympiad Open 2022"]
[Site "Chennai"]
[Date "2022.07.29"]
[Round "1.27"]
[White "Aziz, Husain"]
[Black "Andersen, Mads"]
[Result "1/2-1/2"]
[WhiteElo "2380"]
[BlackElo "2587"]
[Annotator "TA"]
[PlyCount "129"]
[EventDate "2022.??.??"]
[TimeControl "60"]

{[%evp 18,129,11,1,7,6,0,0,0,0,8,14,14,8,8,0,0,0,0,0,58,60,63,59,63,25,26,19,
72,84,71,81,102,106,106,114,108,105,115,116,120,100,128,129,117,96,100,88,168,
165,168,168,168,168,168,146,168,166,164,138,139,127,161,160,163,162,145,147,
137,127,140,143,133,46,114,12,12,12,12,12,12,12,12,12,12,12,12,12,12,12,12,12,
12,12,12,12,12,12,12,12,12,12,12,12,12,12,12,12,12,12,12,12,12,12]} 1. d4 {
[%emt 0:00:02]} d5 {[%emt 0:00:11]} 2. c4 {[%emt 0:00:16]} c6 {[%emt 0:00:33]}
3. Nc3 {[%emt 0:00:18]} Nf6 {[%emt 0:00:00]} 4. e3 {[%emt 0:01:20]} e6 {
[%emt 0:00:00]} 5. Nf3 {[%emt 0:00:08]} Nbd7 {[%emt 0:00:11]} 6. Qc2 {[%emt 0:
00:00]} Bd6 {[%emt 0:00:12]} 7. Be2 {[%emt 0:00:21]} O-O {[%emt 0:00:15]} 8.
O-O {[%emt 0:00:47]} dxc4 {[%emt 0:00:24]} 9. a4 {[%emt 0:02:27]} e5 {[%emt 0:
00:00]} 10. Bxc4 {[%emt 0:00:54]} exd4 {[%emt 0:00:11] D46: Semi-Slav: 5 e3
Nbd7 6 Bd3, Black avoids the Meran.} 11. exd4 {[%emt 0:00:10]} Nb6 {[%emt 0:00:
00]} 12. Bb3 {[%emt 0:00:32]} Nbd5 {[%emt 0:00:08]} 13. Bg5 {[%emt 0:02:55]}
Be6 {[%emt 0:06:55] [#]} 14. Bxd5 $146 {[%emt 0:26:29]} (14. Bxf6 {seems
wilder.} Qxf6 15. Ne4 Qd8 16. Nxd6 Qxd6 17. Ng5) ({Predecessor:} 14. Ne4 Bf5
15. Nxf6+ Qxf6 16. Bxf6 Bxc2 17. Bxc2 Nxf6 18. Rfe1 g6 19. Bb3 Kg7 20. Rad1 {
½-½ (73) Bai,J (2593)-Ding,L (2799) Hangzhou 2022}) 14... cxd5 {[%emt 0:00:
00]} 15. a5 {[%emt 0:19:01]} a6 {[%emt 0:14:47]} 16. Bh4 {[%emt 0:05:48]} Rc8 {
[%emt 0:07:24]} 17. Qb3 {[%emt 0:00:00]} Rb8 {[%emt 0:14:50]} 18. Ne5 {[%emt 0:
00:00]} Bxe5 {[%emt 0:07:28]} (18... Qc7 $11) 19. dxe5 $14 {[%emt 0:00:00] [#]
And now Qa3 would win.} d4 {[%emt 0:00:13][%csl Yb3,Yc3]} 20. Qa3 {[%emt 0:00:
00]} dxc3 {[%emt 0:01:50]} 21. exf6 {[%emt 0:01:03]} Qd4 {[%emt 0:04:10]} 22.
fxg7 {[%emt 0:00:00]} (22. Bg3 {is interesting.} Rbc8 23. fxg7 Rfe8 24. bxc3
Qxc3 25. Qxc3 Rxc3 26. Rfe1) 22... Qxg7 {[%emt 0:02:38]} (22... Rfe8 $11 {
remains equal.} 23. Bg3 Rbc8) 23. Qxc3 {[%emt 0:02:01]} (23. bxc3 {with more
complications.} Rbc8 24. Rac1 Bd5 25. Bg3) 23... Qxc3 {[%emt 0:02:20]} 24. bxc3
{[%emt 0:00:52]} b6 {[%emt 0:06:23]} 25. Bf6 {[%emt 0:00:00]} h6 {[%emt 0:00:
00]} 26. Rfd1 {[%emt 0:05:46]} bxa5 {[%emt 0:03:23]} 27. Rxa5 {[%emt 0:00:00]}
Rb6 {[%emt 0:03:06]} 28. Bd4 {[%emt 0:00:00] White is more active.} Rc6 29. Rd3
{[%emt 0:00:00] [#] Hoping for Rg3+.} Kh7 {[%emt 0:00:00]} 30. h3 {[%emt 0:00:
00]} Rg8 {[%emt 0:00:00]} 31. Kh2 {[%emt 0:01:05]} Bc4 {[%emt 0:02:59]} 32. Rf3
{[%emt 0:02:55]} Rcg6 {[%emt 0:00:00]} (32... Rg5 $16 33. Rff5 Rcg6 34. Rxg5
Rxg5) 33. g4 $18 {[%emt 0:01:20]} Rc8 {[%emt 0:00:00]} 34. Kg3 {[%emt 0:01:52]}
Kg8 {[%emt 0:00:07]} 35. Rff5 {[%emt 0:02:34]} Bb5 {[%emt 0:00:32]} 36. Ra1 {
[%emt 0:01:17]} Re6 {[%emt 0:00:49]} 37. h4 {[%emt 0:01:22]} Bd3 {[%emt 0:00:
00]} 38. Rf4 {[%emt 0:03:32]} Rb8 {[%emt 0:00:51]} 39. h5 {[%emt 0:02:12]} Rc8
{[%emt 0:01:33]} 40. Kh4 {[%emt 0:01:29]} Rb8 {[%emt 0:03:46]} 41. Rd1 {
[%emt 0:34:03]} Be2 {[%emt 0:01:20]} 42. Rg1 {[%emt 0:00:00] Strongly
threatening g5.} Rb5 {[%emt 0:03:52]} 43. Rf6 {[%emt 0:00:00]} Bc4 {[%emt 0:00:
00]} 44. f4 {[%emt 0:00:00]} a5 {[%emt 0:04:55]} 45. g5 {[%emt 0:05:04]} ({
White should play} 45. Rf5 $16) 45... hxg5+ {[%emt 0:06:38]} (45... Rxf6 $14
46. Bxf6 (46. gxf6+ Kf8 $11) 46... a4) 46. Rxg5+ {[%emt 0:01:30]} (46. fxg5 $16
Rxf6 47. Bxf6 (47. gxf6+ Kh8 $16)) 46... Rxg5 $11 {[%emt 0:00:00] The position
is equal.} 47. Kxg5 {[%emt 0:07:39] aiming for Rf5.} Rxf6 {[%emt 0:03:15]} 48.
Bxf6 $14 {[%emt 0:00:46] Endgame KB-KB} ({But not} 48. Kxf6 a4 49. Bc5 Kh7 $14)
48... a4 {[%emt 0:00:34] ( -> ...a3)} 49. Be7 {[%emt 0:00:00]} Kg7 {[%emt 0:00:
37]} 50. h6+ {[%emt 0:00:00]} Kh7 {[%emt 0:00:08]} 51. Bf8 {[%emt 0:00:12]} Kg8
{[%emt 0:01:16]} 52. Kf6 {[%emt 0:00:00]} Be6 {[%emt 0:00:00]} (52... Kxf8 $2
53. h7 Ke8 54. h8=Q+ $18) 53. Bd6 {[%emt 0:00:00]} Kh7 {[%emt 0:00:06]} 54. f5
{[%emt 0:00:00]} Bc4 {[%emt 0:00:44]} 55. Bf8 $1 {[%emt 0:00:00]} Kg8 {[%emt 0:
00:22]} 56. Ba3 {[%emt 0:00:00]} Kh7 {[%emt 0:00:00]} 57. Bc1 {[%emt 0:00:00]}
a3 {[%emt 0:02:13]} 58. Bxa3 {[%emt 0:00:00] White wants to mate with Bc1.}
Kxh6 {[%emt 0:00:03]} 59. Ke5 {[%emt 0:00:00]} Kg5 {[%emt 0:00:17]} 60. f6 {
[%emt 0:00:00]} Bb3 {[%emt 0:00:52]} 61. Be7 {[%emt 0:00:00]} Kg4 {[%emt 0:02:
12]} 62. Kd4 {[%emt 0:00:00]} Kf5 {[%emt 0:00:00]} 63. c4 {[%emt 0:00:00]} Ke6
{[%emt 0:00:00]} 64. c5 {[%emt 0:00:00]} Kd7 {[%emt 0:00:00]} 65. Ke4 {[%emt 0:
00:11] Blacks defense is rewarded with a draw. Weighted Error Value: White=0.
09 (flawless) /Black=0.09 (flawless)} 1/2-1/2

[Event "44th Chess Olympiad Open 2022"]
[Site "Chennai"]
[Date "2022.07.29"]
[Round "1.27"]
[White "Yousuf M M Al Mutawa"]
[Black "Rasmussen, Allan Stig"]
[Result "0-1"]
[WhiteElo "2120"]
[BlackElo "2550"]
[Annotator "TA"]
[PlyCount "98"]
[EventDate "2022.??.??"]
[TimeControl "60"]

{[%evp 16,98,24,17,20,1,0,-7,0,0,-6,-31,-32,-33,-32,-33,-32,-29,-32,-39,-39,
-47,-46,-48,-39,-39,-31,-76,-61,-60,-57,-222,-236,-207,-177,-171,-171,-147,-59,
-48,-43,-38,-37,-55,-38,-121,-116,-116,-116,-122,-95,-109,-87,-125,-125,-125,
-95,-95,-96,-96,-93,-119,-109,-660,-661,-717,-715,-706,-706,-701,-689,-814,
-802,-735,-665,-823,-802,-3293,-2758,-29971,-1118,-29972,-29972,-29989,-29990]
} 1. e4 {[%emt 0:00:05]} c6 {[%emt 0:00:16]} 2. d4 {[%emt 0:00:23]} d5 {
[%emt 0:00:08]} 3. e5 {[%emt 0:00:14]} Bf5 {[%emt 0:00:19]} 4. Bd3 {[%emt 0:00:
00]} Bxd3 {[%emt 0:00:20]} 5. Qxd3 {[%emt 0:00:13]} e6 {[%emt 0:00:52]} 6. Nf3
{[%emt 0:01:15]} Qa5+ {[%emt 0:01:02]} 7. c3 {[%emt 0:01:11]} Qa6 {[%emt 0:00:
00]} 8. Qxa6 {[%emt 0:04:31]} Nxa6 {[%emt 0:00:09]} 9. O-O {[%emt 0:00:14]} Ne7
{[%emt 0:03:45] B12: Caro-Kann: Advance Variation.} 10. Nbd2 {[%emt 0:04:53]}
c5 {[%emt 0:02:57]} 11. Nb3 {[%emt 0:09:11]} c4 {[%emt 0:16:39] The position
is equal.} 12. Nbd2 {[%emt 0:00:00] [#]} Nc6 $146 {[%emt 0:05:25]} ({
Predecessor:} 12... Rc8 13. Re1 Ng6 14. Nf1 Be7 15. Bd2 O-O 16. g3 Rfd8 17. Kg2
Nc7 18. Ng1 Bf8 {½-½ (46) Mendoza,B (2045)-Bernales,C (2041) Subic Bay 2009})
13. Ne1 {[%emt 0:08:54]} b5 {[%emt 0:03:31]} 14. a3 {[%emt 0:03:18]} Nc7 {
[%emt 0:02:06]} 15. f4 {[%emt 0:10:05]} a5 {[%emt 0:08:26]} 16. Nc2 {[%emt 0:
00:00]} f5 {[%emt 0:06:17]} 17. Nf3 {[%emt 0:06:15]} Kd7 {[%emt 0:04:26]} 18.
Bd2 {[%emt 0:00:46]} Be7 {[%emt 0:00:26]} 19. Rfb1 {[%emt 0:02:21]} Rab8 {
[%emt 0:03:08]} 20. Kf2 {[%emt 0:05:27]} Rb7 {[%emt 0:03:35]} 21. Bc1 {[%emt 0:
00:00]} b4 {[%emt 0:01:00]} 22. axb4 {[%emt 0:00:25]} axb4 {[%emt 0:00:06]} 23.
Nd2 $2 {[%emt 0:01:09]} ({Better is} 23. Bd2 $15) 23... Rhb8 $19 {[%emt 0:00:
00]} 24. Ne3 {[%emt 0:05:14]} Nb5 {[%emt 0:03:57]} 25. Nd1 {[%emt 0:01:47]} Bd8
{[%emt 0:02:39] ...Ba5 is the strong threat.} 26. Nf3 {[%emt 0:03:13]} Ba5 {
[%emt 0:04:04]} (26... Nc7 $17 27. h3 h6) 27. Bd2 $15 {[%emt 0:00:22]} Nc7 {
[%emt 0:01:59]} 28. Rc1 {[%emt 0:01:24]} Bb6 {[%emt 0:05:15]} 29. Be3 {[%emt 0:
00:00]} h6 {[%emt 0:03:18]} 30. Ng1 {[%emt 0:04:30] [#]} ({White should try} 
30. h3 $15) 30... Na5 $1 $36 {[%emt 0:03:51][%cal Yc6a5,Ya5b3,Yb3a1] Strongly
threatening ...Nb3. Black is on the roll.} 31. Ra4 {[%emt 0:00:00]} Nb3 {
[%emt 0:00:14] Inhibits Rca1.} 32. Rc2 {[%emt 0:02:48]} Ra7 {[%emt 0:00:00]}
33. Rxa7 {[%emt 0:01:59]} Bxa7 {[%emt 0:00:02]} 34. Ne2 {[%emt 0:01:06]} Bb6 {
[%emt 0:02:40]} 35. Nc1 {[%emt 0:03:32]} Na1 {[%emt 0:02:48] Black is more
active.} 36. Re2 {[%emt 0:00:21]} Ba5 {[%emt 0:01:23]} 37. Kf3 {[%emt 0:00:00]}
Nb5 {[%emt 0:00:59][%cal Rb4c3]} 38. Na2 {[%emt 0:04:14]} b3 {[%emt 0:00:00]}
39. Nb4 {[%emt 0:04:02]} (39. Nc1 $17) 39... Bxb4 $19 {[%emt 0:00:24]} 40. cxb4
{[%emt 0:00:00]} Nc2 {[%emt 0:01:06]} 41. Rd2 {[%emt 0:30:51]} Ra8 {[%emt 0:35:
01]} 42. g4 {[%emt 0:04:19]} Ra1 {[%emt 0:00:00] Threatens to win with ...
fxg4+.} 43. gxf5 {[%emt 0:00:00]} exf5 {[%emt 0:00:00]} 44. Bf2 {[%emt 0:00:00]
} Ke6 {[%emt 0:00:00]} 45. Ke2 {[%emt 0:00:00]} Nxb4 {[%emt 0:00:00]} 46. Ne3 {
[%emt 0:00:00]} c3 {[%emt 0:00:00] [#] aiming for ...c2.} 47. bxc3 {[%emt 0:00:
00]} Nxc3+ {[%emt 0:00:00]} 48. Kf3 {[%emt 0:00:00]} Ra2 {[%emt 0:00:00]} 49.
Nc4 {[%emt 0:00:00]} dxc4 {[%emt 0:00:00] Weighted Error Value: White=0.75/
Black=0.05 (flawless)} 0-1

[Event "44th Chess Olympiad Open 2022"]
[Site "Chennai"]
[Date "2022.07.29"]
[Round "1.28"]
[White "Fier, Alexandr"]
[Black "Beukes, Dante M"]
[Result "1-0"]
[WhiteElo "2567"]
[BlackElo "2234"]
[Annotator "RC"]
[PlyCount "23"]
[EventDate "2022.??.??"]
[TimeControl "60"]

1. e4 {[%emt 0:00:03]} c5 {[%emt 0:00:09]} 2. Nf3 {[%emt 0:00:04]} d6 {[%emt 0:
00:00]} 3. d4 {[%emt 0:00:04]} cxd4 {[%emt 0:00:05]} 4. Nxd4 {[%emt 0:00:04]}
Nf6 {[%emt 0:00:08]} 5. Nc3 {[%emt 0:00:02]} a6 {[%emt 0:00:05]} 6. Be2 {
[%emt 0:00:03]} e5 {[%emt 0:00:30]} 7. Nb3 {[%emt 0:00:04]} Be7 {[%emt 0:00:36]
} 8. Be3 {[%emt 0:00:44]} Be6 {[%emt 0:00:56]} 9. Qd3 {[%emt 0:00:19]} Nbd7 {
[%emt 0:02:21]} 10. Nd5 {[%emt 0:00:23]} Bxd5 {[%emt 0:00:34]} 11. exd5 {
[%emt 0:00:05]} O-O {[%emt 0:01:09]} 12. g4 {[%emt 0:07:03]} 1-0

[Event "44th Chess Olympiad Open 2022"]
[Site "Chennai"]
[Date "2022.07.29"]
[Round "1.28"]
[White "Fier Alexandr"]
[Black "Beukes Dante M"]
[Result "1-0"]
[WhiteElo "2558"]
[BlackElo "2234"]
[Annotator "RC"]
[PlyCount "22"]
[EventDate "2022.??.??"]
[TimeControl "60"]

1. e4 {[%emt 0:00:03]} c5 {[%emt 0:00:09]} 2. Nf3 {[%emt 0:00:04]} d6 {[%emt 0:
00:00]} 3. d4 {[%emt 0:00:04]} cxd4 {[%emt 0:00:05]} 4. Nxd4 {[%emt 0:00:04]}
Nf6 {[%emt 0:00:08]} 5. Nc3 {[%emt 0:00:02]} a6 {[%emt 0:00:05]} 6. Be2 {
[%emt 0:00:03]} e5 {[%emt 0:00:30]} 7. Nb3 {[%emt 0:00:04]} Be7 {[%emt 0:00:36]
} 8. Be3 {[%emt 0:00:44]} Be6 {[%emt 0:00:56]} 9. Qd3 {[%emt 0:00:19]} Nbd7 {
[%emt 0:02:21]} 10. Nd5 {[%emt 0:00:23]} Bxd5 {[%emt 0:00:34]} 11. exd5 {
[%emt 0:00:05]} O-O {[%emt 0:01:09]} 1-0

[Event "44th Chess Olympiad Open 2022"]
[Site "Chennai"]
[Date "2022.07.29"]
[Round "1.28"]
[White "Diamant, Andre"]
[Black "Uapingene, Uatiavi Jossy"]
[Result "1-0"]
[WhiteElo "2538"]
[BlackElo "1798"]
[Annotator "RC"]
[PlyCount "95"]
[EventDate "2022.??.??"]
[TimeControl "60"]

1. c4 {[%emt 0:00:04]} Nf6 {[%emt 0:00:17]} 2. Nc3 {[%emt 0:00:05]} e6 {
[%emt 0:00:19]} 3. Nf3 {[%emt 0:01:14]} d5 {[%emt 0:01:23]} 4. e3 {[%emt 0:00:
00]} Be7 {[%emt 0:03:18]} 5. b3 {[%emt 0:00:24]} c5 {[%emt 0:03:18]} 6. cxd5 {
[%emt 0:00:28]} Nxd5 {[%emt 0:01:06]} 7. Bb2 {[%emt 0:00:33]} O-O {[%emt 0:00:
00]} 8. Qb1 {[%emt 0:06:45]} Nxc3 {[%emt 0:05:12]} 9. Bxc3 {[%emt 0:00:43]} Nc6
{[%emt 0:01:23]} 10. Qb2 {[%emt 0:03:02]} Bf6 {[%emt 0:00:16]} 11. Bxf6 {
[%emt 0:00:39]} Qxf6 {[%emt 0:00:04]} 12. Qxf6 {[%emt 0:00:15]} gxf6 {[%emt 0:
00:00]} 13. Rc1 {[%emt 0:00:24]} b6 {[%emt 0:06:57]} 14. d4 {[%emt 0:01:57]}
Nb4 {[%emt 0:00:32]} 15. a3 {[%emt 0:01:53]} Na6 {[%emt 0:04:11]} 16. dxc5 {
[%emt 0:06:15]} Nxc5 {[%emt 0:00:00]} 17. b4 {[%emt 0:00:06]} Ne4 {[%emt 0:00:
00]} 18. Bd3 {[%emt 0:00:18]} Bb7 {[%emt 0:00:00]} 19. Rc7 {[%emt 0:05:07]} Bd5
{[%emt 0:05:05]} 20. Ba6 {[%emt 0:08:33]} Rfe8 {[%emt 0:05:46]} 21. Ke2 {
[%emt 0:02:50]} Kf8 {[%emt 0:00:30]} 22. Rhc1 {[%emt 0:11:27]} Re7 23. Rxe7 {
[%emt 0:00:00]} Kxe7 {[%emt 0:09:08]} 24. Rc7+ {[%emt 0:00:00]} Kf8 {[%emt 0:
00:00]} 25. Nd4 {[%emt 0:00:00]} Nd6 {[%emt 0:00:04]} 26. f3 {[%emt 0:00:00]}
Ne8 {[%emt 0:10:07]} 27. Rc2 {[%emt 0:11:33]} f5 {[%emt 0:08:34]} 28. g4 {
[%emt 0:04:59]} fxg4 {[%emt 0:00:00]} 29. fxg4 {[%emt 0:04:34]} Be4 {[%emt 0:
00:00]} 30. Bd3 {[%emt 0:07:39]} Bxd3+ {[%emt 0:00:00]} 31. Kxd3 {[%emt 0:00:
00]} Rd8 {[%emt 0:00:00]} 32. Ke2 {[%emt 0:00:18]} Rd5 {[%emt 0:00:00]} 33. Rc8
{[%emt 0:02:20]} h5 {[%emt 0:08:26]} 34. h3 {[%emt 0:00:27]} hxg4 {[%emt 0:00:
00]} 35. hxg4 {[%emt 0:00:04]} a5 {[%emt 0:00:00]} 36. b5 {[%emt 0:01:08]} e5 {
[%emt 0:18:02]} 37. Nf5 {[%emt 0:01:22]} e4 {[%emt 0:02:06]} 38. Rb8 {[%emt 0:
00:00]} Rd3 {[%emt 0:00:14]} 39. a4 {[%emt 0:01:36]} f6 {[%emt 0:00:39]} 40.
Rxb6 {[%emt 0:00:50]} Ra3 {[%emt 0:00:07]} 41. Rb8 {[%emt 0:35:51]} Kf7 {
[%emt 0:31:55]} 42. Rb7+ {[%emt 0:00:56]} Kf8 {[%emt 0:00:42]} 43. Rd7 {
[%emt 0:01:59]} Rxa4 {[%emt 0:00:06]} 44. Nh6 {[%emt 0:00:45]} Ra2+ {[%emt 0:
00:00]} 45. Kf1 {[%emt 0:00:00]} Nc7 {[%emt 0:00:00]} 46. Rxc7 {[%emt 0:00:00]}
Rb2 {[%emt 0:00:00]} 47. Nf5 {[%emt 0:01:04]} Rxb5 {[%emt 0:00:00]} 48. Rc8+ {
[%emt 0:00:00]} 1-0

[Event "44th Chess Olympiad Open 2022"]
[Site "Chennai"]
[Date "2022.07.29"]
[Round "1.28"]
[White "Eichab, Charles"]
[Black "Mekhitarian, Krikor Sevag"]
[Result "0-1"]
[WhiteElo "2048"]
[BlackElo "2542"]
[Annotator "RC"]
[PlyCount "46"]
[EventDate "2022.??.??"]
[TimeControl "60"]

1. c4 {[%emt 0:00:13]} e6 {[%emt 0:00:04]} 2. Nf3 {[%emt 0:01:13]} d5 {[%emt 0:
00:00]} 3. g3 {[%emt 0:00:28]} Nf6 {[%emt 0:00:19]} 4. Bg2 {[%emt 0:00:06]} d4
{[%emt 0:00:08]} 5. b4 {[%emt 0:03:13]} c5 {[%emt 0:06:22]} 6. bxc5 {[%emt 0:
00:00]} Bxc5 {[%emt 0:01:15]} 7. Ba3 {[%emt 0:01:05]} Na6 {[%emt 0:13:27]} 8.
O-O {[%emt 0:07:47]} O-O {[%emt 0:03:46]} 9. d3 {[%emt 0:10:18]} Re8 {[%emt 0:
00:00]} 10. Bxc5 {[%emt 0:10:39]} Nxc5 {[%emt 0:00:05]} 11. Nbd2 {[%emt 0:00:
00]} e5 {[%emt 0:00:25]} 12. Nb3 {[%emt 0:03:48]} Na4 {[%emt 0:09:02]} 13. Qc2
{[%emt 0:02:45]} Bd7 {[%emt 0:00:23]} 14. Ng5 {[%emt 0:14:29]} Qc7 {[%emt 0:00:
00]} 15. e3 {[%emt 0:03:11]} h6 {[%emt 0:08:05]} 16. Ne4 {[%emt 0:01:09]} Nxe4
{[%emt 0:00:20]} 17. Bxe4 {[%emt 0:00:58]} dxe3 {[%emt 0:00:13]} 18. fxe3 {
[%emt 0:00:22]} Bc6 {[%emt 0:00:03]} 19. Bxc6 {[%emt 0:03:18]} Qxc6 {[%emt 0:
00:00]} 20. Na5 {[%emt 0:00:28]} Qd7 {[%emt 0:00:55]} 21. Nxb7 {[%emt 0:02:58]}
Rac8 {[%emt 0:02:06]} 22. Rab1 {[%emt 0:03:00]} Re6 {[%emt 0:07:13]} 23. Rb5 {
[%emt 0:04:28]} Qxb5 {[%emt 0:01:22]} 0-1

[Event "44th Chess Olympiad Open 2022"]
[Site "Chennai"]
[Date "2022.07.29"]
[Round "1.28"]
[White "Khoa, Goodwill"]
[Black "Lima, Darcy"]
[Result "0-1"]
[WhiteElo "1850"]
[BlackElo "2445"]
[Annotator "RC"]
[PlyCount "104"]
[EventDate "2022.??.??"]
[TimeControl "60"]

1. Nf3 {[%emt 0:00:05]} d5 {[%emt 0:00:23]} 2. d4 {[%emt 0:00:23]} Nf6 {
[%emt 0:00:51]} 3. c4 {[%emt 0:00:40]} dxc4 {[%emt 0:00:20]} 4. Nc3 {[%emt 0:
00:00]} c5 {[%emt 0:08:12]} 5. e4 {[%emt 0:04:15]} cxd4 {[%emt 0:00:00]} 6.
Qxd4 {[%emt 0:01:56]} Qxd4 {[%emt 0:03:33]} 7. Nxd4 {[%emt 0:01:30]} e5 {
[%emt 0:01:17]} 8. Ndb5 {[%emt 0:05:04]} Kd8 {[%emt 0:03:47]} 9. Be3 {[%emt 0:
00:00]} Be6 {[%emt 0:00:00]} 10. Rd1+ {[%emt 0:07:50]} Nbd7 {[%emt 0:00:00]}
11. Bxa7 {[%emt 0:03:17]} Bb4 {[%emt 0:00:57]} 12. f3 {[%emt 0:08:47]} Ke7 {
[%emt 0:00:16]} 13. Be3 {[%emt 0:03:21]} Rxa2 {[%emt 0:13:27]} 14. Rd2 {
[%emt 0:10:45]} Ra1+ {[%emt 0:00:00]} 15. Rd1 {[%emt 0:13:30]} Rxd1+ {[%emt 0:
00:00]} 16. Kxd1 {[%emt 0:00:00]} Ra8 {[%emt 0:04:55]} 17. Kc2 {[%emt 0:00:00]}
Ra1 {[%emt 0:01:07]} 18. Nc7 {[%emt 0:06:45]} Bc5 {[%emt 0:06:56]} 19. Bc1 {
[%emt 0:00:00]} Nb6 {[%emt 0:00:38]} 20. Nxe6 {[%emt 0:00:00]} fxe6 {[%emt 0:
00:00]} 21. Be2 {[%emt 0:00:00]} Ra8 {[%emt 0:05:53]} 22. Rd1 {[%emt 0:00:11]}
h6 {[%emt 0:04:10]} 23. Nb5 {[%emt 0:02:04]} Ne8 {[%emt 0:04:08]} 24. h4 {
[%emt 0:03:55]} Ra5 {[%emt 0:01:17]} 25. Nc3 {[%emt 0:00:30]} Nd6 {[%emt 0:00:
00]} 26. g4 {[%emt 0:03:39]} Nd7 {[%emt 0:04:03]} 27. g5 {[%emt 0:02:13]} h5 {
[%emt 0:01:30]} 28. f4 {[%emt 0:00:00]} g6 {[%emt 0:02:22]} 29. fxe5 {[%emt 0:
00:00]} Nxe5 {[%emt 0:00:19]} 30. Bf4 {[%emt 0:01:14]} Ndf7 {[%emt 0:01:06]}
31. Bg3 {[%emt 0:01:02]} b5 {[%emt 0:00:34]} 32. Rf1 {[%emt 0:08:32]} b4 {
[%emt 0:10:53]} 33. Nd1 {[%emt 0:00:00]} Bd4 {[%emt 0:00:47]} 34. Bf2 {[%emt 0:
00:00]} Bxf2 {[%emt 0:00:41]} 35. Nxf2 {[%emt 0:00:00]} Nd6 {[%emt 0:00:11]}
36. Rd1 {[%emt 0:00:00]} Ra8 {[%emt 0:03:15]} 37. Rd2 {[%emt 0:00:43]} Rf8 {
[%emt 0:00:00]} 38. Nh3 {[%emt 0:05:15]} Nxe4 {[%emt 0:04:40]} 39. Rd4 {
[%emt 0:00:00]} Ng3 {[%emt 0:00:36]} 40. Bxc4 {[%emt 0:00:00]} Nf5 {[%emt 0:00:
00]} 41. Re4 {[%emt 0:33:13]} Nxc4 {[%emt 0:30:07]} 42. Rxc4 {[%emt 0:01:11]}
Ne3+ {[%emt 0:00:06]} 43. Kd3 {[%emt 0:00:11]} Nxc4 {[%emt 0:00:24]} 44. Kxc4 {
[%emt 0:00:07]} b3 {[%emt 0:00:24]} 45. Ng1 {[%emt 0:01:16]} Rf2 {[%emt 0:00:
00]} 46. Nh3 {[%emt 0:02:35]} Rf1 {[%emt 0:01:14]} 47. Kd4 {[%emt 0:00:28]} Rf3
{[%emt 0:00:49]} 48. Ng1 {[%emt 0:00:17]} Rf4+ {[%emt 0:00:06]} 49. Kc3 {
[%emt 0:00:13]} Rxh4 {[%emt 0:00:14]} 50. Kxb3 {[%emt 0:00:13]} Rg4 {[%emt 0:
00:00]} 51. Ne2 {[%emt 0:00:07]} h4 {[%emt 0:00:06]} 52. Kc2 {[%emt 0:00:21]}
h3 {[%emt 0:00:12]} 0-1

[Event "44th Chess Olympiad Open 2022"]
[Site "Chennai"]
[Date "2022.07.29"]
[Round "1.29"]
[White "Cheng, Bobby"]
[Black "Alhassadi, Yousef A."]
[Result "1-0"]
[WhiteElo "2540"]
[BlackElo "2068"]
[Annotator "RC"]
[PlyCount "58"]
[EventDate "2022.??.??"]
[TimeControl "60"]

1. Nf3 {[%emt 0:00:04]} d5 {[%emt 0:00:15]} 2. c4 {[%emt 0:00:15]} e6 {[%emt 0:
00:00]} 3. g3 {[%emt 0:00:42]} c5 {[%emt 0:00:16]} 4. cxd5 {[%emt 0:00:57]}
exd5 {[%emt 0:00:06]} 5. Bg2 {[%emt 0:00:24]} Nc6 {[%emt 0:00:14]} 6. d4 {
[%emt 0:04:32]} Nf6 {[%emt 0:00:09]} 7. O-O {[%emt 0:00:17]} c4 {[%emt 0:01:24]
} 8. b3 {[%emt 0:06:09]} cxb3 {[%emt 0:00:35]} 9. axb3 {[%emt 0:02:15]} Qb6 {
[%emt 0:01:15]} 10. Nc3 {[%emt 0:04:31]} Be7 {[%emt 0:02:45]} 11. Bg5 {[%emt 0:
00:00]} Be6 {[%emt 0:06:03]} 12. e3 {[%emt 0:01:32]} O-O {[%emt 0:17:23]} 13.
Ne5 {[%emt 0:03:58]} h6 {[%emt 0:10:51]} 14. Bxf6 {[%emt 0:03:45]} Bxf6 {
[%emt 0:05:59]} 15. Ng4 {[%emt 0:00:07]} Bd8 {[%emt 0:33:13]} 16. Nxd5 {
[%emt 0:04:36]} Qb5 {[%emt 0:02:11]} 17. Nc3 {[%emt 0:08:01]} Qb4 {[%emt 0:00:
00]} 18. Na2 {[%emt 0:08:55]} Qxb3 {[%emt 0:02:43]} 19. Qxb3 {[%emt 0:01:44]}
Bxb3 {[%emt 0:00:06]} 20. Rfb1 {[%emt 0:00:06]} Bxa2 {[%emt 0:06:41]} 21. Rxa2
{[%emt 0:00:20]} Bb6 {[%emt 0:00:15]} 22. Bxc6 {[%emt 0:02:25]} bxc6 {[%emt 0:
00:00]} 23. Ne5 {[%emt 0:00:04]} c5 {[%emt 0:01:13]} 24. d5 {[%emt 0:00:21]}
Rfd8 {[%emt 0:00:47]} 25. Nc6 {[%emt 0:00:48]} Rf8 {[%emt 0:05:10]} 26. e4 {
[%emt 0:02:46]} f6 {[%emt 0:00:41]} 27. f4 {[%emt 0:00:10]} c4+ {[%emt 0:01:06]
} 28. Kg2 {[%emt 0:00:16]} Rfe8 {[%emt 0:00:20]} 29. d6 {[%emt 0:03:30]} Rec8 {
[%emt 0:00:34]} 1-0